bitfinex/quotes_SOLUSD_20241121
["timestamp","ask_amount","ask_price","bid_price","bid_amount"]
[1732231883171,15.8057,256.27,256.21,7.58495502]
[1732231883676,15.8057,256.27,256.22,3.9028]
[1732231885183,15.8057,256.27,256.23,7.58495502]
[1732231885675,7.58495502,256.33,256.25,7.58495502]
[1732231886552,3.9013,256.32,256.25,7.58495502]
[1732231886776,3.9013,256.32,256.25,11.48735502]
[1732231889677,11.48625502,256.32,256.23,17.34165502]
[1732231889980,7.58495502,256.3,256.21,7.58495502]
[1732231890481,7.58495502,256.28,256.19,13.60775502]
[1732231890670,7.58495502,256.28,256.19,7.58495502]
[1732231890871,11.48705502,256.28,256.2,3.9031]
[1732231891862,11.48705502,256.28,256.19,7.58495502]
[1732231892065,7.58495502,256.26,256.18,9.7584]
[1732231892264,7.58495502,256.26,256.19,7.58495502]
[1732231892891,7.58495502,256.26,256.19,11.48815502]
[1732231893471,11.48725502,256.26,256.19,3.9032]
[1732231897076,7.58495502,256.28,256.2,7.58495502]
[1732231897278,11.48655502,256.3,256.2,7.58495502]
[1732231898270,11.48655502,256.3,256.21,3.903]
[1732231899076,3.9016,256.3,256.21,13.6606]
[1732231899287,3.9016,256.3,256.22,7.58495502]
[1732231901584,3.9016,256.3,256.22,11.48775502]
[1732231902272,3.9016,256.3,256.24,7.58495502]
[1732231903276,3.9016,256.3,256.24,11.48745502]
[1732231903590,3.9015,256.32,256.24,11.48745502]
[1732231903899,3.9015,256.32,256.24,21.24385502]
[1732231904480,19.4804,256.34,256.26,7.58495502]
[1732231905301,19.4804,256.34,256.26,11.48715502]
[1732231905889,27.06535502,256.34,256.26,11.48715502]
[1732231907397,27.06535502,256.34,256.26,7.58495502]
[1732231907979,7.58495502,256.28,256.2,9.758]
[1732231908285,7.58495502,256.26,256.2,9.758]
[1732231909498,11.48735502,256.26,256.2,9.758]
[1732231909896,7.58495502,256.26,256.2,9.758]
[1732231910198,3.9013,256.32,256.22,7.58495502]
[1732231910510,11.48625502,256.32,256.24,7.58495502]
[1732231911984,11.48625502,256.32,256.24,11.48745502]
[1732231912181,3.9013,256.32,256.24,21.24385502]
[1732231912808,15.5793,256.34,256.28,7.58495502]
[1732231913493,15.5793,256.34,256.28,11.48675502]
[1732231913694,15.5793,256.34,256.28,21.24165502]
[1732231915006,15.5793,256.34,256.28,13.6567]
[1732231917900,27.06525502,256.34,256.28,9.7549]
[1732231918996,23.16425502,256.34,256.28,9.7549]
[1732231920023,15.5793,256.34,256.28,9.7549]
[1732231921388,23.16425502,256.34,256.28,9.7549]
[1732231921589,15.5793,256.34,256.28,9.7549]
[1732231922310,19.4803,256.34,256.28,9.7549]
[1732231922511,7.58495502,256.32,256.24,20.0]
[1732231923510,7.58495502,256.32,256.23,21.24415502]
[1732231923693,7.58495502,256.3,256.23,9.7565]
[1732231924809,7.58495502,256.3,256.23,17.34145502]
[1732231924989,7.58495502,256.3,256.23,21.24415502]
[1732231925193,11.48635502,256.32,256.23,13.6592]
[1732231925919,7.58495502,256.3,256.23,9.7565]
[1732231926086,15.5793,256.34,256.23,9.7565]
[1732231926288,3.9012,256.33,256.24,7.58495502]
[1732231926595,7.58495502,256.3,256.23,13.6592]
[1732231926893,7.58495502,256.27,256.21,3.9029]
[1732231928202,7.58495502,256.27,256.19,3.9033]
[1732231928397,7.58495502,256.27,256.19,13.6616]
[1732231929522,11.48685502,256.29,256.2,7.58495502]
[1732231929813,7.58495502,256.27,256.2,7.58495502]
[1732231929991,7.58495502,256.23,256.15,3.9038]
[1732231930507,7.58495502,256.21,256.15,3.9038]
[1732231932711,7.58495502,256.23,256.15,3.9038]
[1732231933020,7.58495502,256.25,256.17,7.58495502]
[1732231934118,7.58495502,256.25,256.18,13.6622]
[1732231934424,11.48705502,256.27,256.18,13.6622]
[1732231934605,3.9012,256.33,256.26,7.58495502]
[1732231934806,3.9012,256.33,256.24,7.58495502]
[1732231935414,7.58495502,256.32,256.24,7.58495502]
[1732231935608,7.58495502,256.32,256.25,3.9024]
[1732231935808,7.58495502,256.32,256.25,13.6584]
[1732231936333,15.5793,256.34,256.26,7.58495502]
[1732231936498,15.5793,256.34,256.25,13.6584]
[1732231936499,15.5793,256.34,256.28,7.58495502]
[1732231938447,15.5793,256.34,256.29,3.9018]
[1732231941421,15.5793,256.34,256.26,7.58495502]
[1732231941622,15.5793,256.34,256.21,20.0]
[1732231941623,7.58495502,256.32,256.21,20.0]
[1732231941813,3.9012,256.33,256.21,27.58495502]
[1732231941814,7.58495502,256.3,256.21,27.58495502]
[1732231942124,7.58495502,256.3,256.21,7.58495502]
[1732231942538,7.58495502,256.26,256.2,13.6612]
[1732231944002,7.58495502,256.24,256.2,13.6612]
[1732231944225,7.58495502,256.24,256.15,13.6635]
[1732231944437,7.58495502,256.22,256.15,13.6635]
[1732231944616,3.9021,256.27,256.15,13.6635]
[1732231944809,7.58495502,256.24,256.15,13.6635]
[1732231952211,7.58495502,256.24,256.17,13.6627]
[1732231953938,7.58495502,256.22,256.17,9.7591]
[1732231956716,7.58495502,256.22,256.15,7.58495502]
[1732231957542,7.58495502,256.28,256.19,7.58495502]
[1732231958614,7.58495502,256.28,256.2,3.9032]
[1732231958814,11.48695502,256.28,256.2,3.9032]
[1732231961821,11.48695502,256.28,256.2,13.6612]
[1732231962134,11.48675502,256.3,256.21,7.58495502]
[1732231962940,11.48675502,256.3,256.23,7.58495502]
[1732231963232,11.48675502,256.3,256.22,3.9028]
[1732231967137,7.58495502,256.28,256.2,9.758]
[1732231968326,11.48685502,256.28,256.2,13.6612]
[1732231972953,11.48685502,256.28,256.21,7.58495502]
[1732231973334,3.9019,256.28,256.21,7.58495502]
[1732231974246,3.9019,256.28,256.21,11.48785502]
[1732231975244,15.0214,256.31,256.21,11.48785502]
[1732231975433,3.9016,256.3,256.23,7.58495502]
[1732231977236,23.776884,256.32,256.23,7.58495502]
[1732231977435,3.9013,256.32,256.23,11.48755502]
[1732231977751,7.58495502,256.35,256.27,7.58495502]
[1732231977935,19.8218,256.36,256.27,7.58495502]
[1732231978131,19.8218,256.36,256.29,7.58495502]
[1732231978343,3.9005,256.38,256.31,7.58495502]
[1732231978557,11.48495502,256.41,256.31,7.58495502]
[1732231979464,7.58495502,256.39,256.31,11.48625502]
[1732231980445,11.48535502,256.39,256.31,11.48625502]
[1732231983554,7.58495502,256.37,256.29,7.58495502]
[1732231984142,7.58495502,256.37,256.27,7.58495502]
[1732231984655,7.58495502,256.35,256.27,7.58495502]
[1732231984849,7.58495502,256.37,256.29,7.58495502]
[1732231985360,3.9007,256.36,256.29,7.58495502]
[1732231986030,3.9007,256.36,256.29,11.48665502]
[1732231986660,3.9007,256.36,256.29,3.9017]
[1732231987156,7.58495502,256.35,256.27,3.902]
[1732231989344,7.58495502,256.35,256.27,13.6573]
[1732231990657,11.48585502,256.35,256.27,13.6573]
[1732231994854,3.9009,256.35,256.28,7.58495502]
[1732231995357,3.9,256.41,256.3,7.58495502]
[1732231995561,23.776884,256.4,256.32,7.58495502]
[1732231996660,7.58495502,256.37,256.29,3.9016]
[1732231997175,7.58495502,256.35,256.27,13.6573]
[1732231998055,7.58495502,256.33,256.27,9.7553]
[1732231998740,11.48625502,256.33,256.27,9.7553]
[1732232000952,11.48625502,256.33,256.23,19.5137]
[1732232001157,7.58495502,256.31,256.24,7.58495502]
[1732232001341,11.48625502,256.33,256.24,7.58495502]
[1732232002041,11.48625502,256.33,256.24,11.48735502]
[1732232002239,26.92425502,256.33,256.24,11.48735502]
[1732232008338,26.92425502,256.33,256.24,3.9024]
[1732232008541,15.438,256.33,256.27,7.58495502]
[1732232009146,15.438,256.33,256.25,7.58495502]
[1732232010062,7.58495502,256.28,256.24,9.7564]
[1732232010440,7.58495502,256.28,256.21,3.9029]
[1732232011541,7.58495502,256.28,256.21,13.6605]
[1732232013165,11.48685502,256.28,256.21,13.6605]
[1732232017371,3.9019,256.28,256.21,17.34255502]
[1732232018460,11.48685502,256.28,256.21,9.7576]
[1732232018650,11.48685502,256.28,256.21,13.6606]
[1732232019243,3.9019,256.28,256.24,7.58495502]
[1732232019574,3.9013,256.32,256.27,7.58495502]
[1732232020068,3.9013,256.32,256.26,7.58495502]
[1732232023968,3.9013,256.32,256.24,7.58495502]
[1732232025067,3.9013,256.32,256.25,3.9024]
[1732232025769,15.438,256.33,256.26,7.58495502]
[1732232025972,19.3392,256.33,256.26,7.58495502]
[1732232026651,15.438,256.33,256.28,7.58495502]
[1732232026850,15.438,256.33,256.29,3.9018]
[1732232029459,3.9005,256.38,256.3,7.58495502]
[1732232029660,7.58495502,256.37,256.3,7.58495502]
[1732232030469,11.48555502,256.37,256.3,11.48655502]
[1732232031753,3.9006,256.37,256.3,11.48655502]
[1732232032348,3.9006,256.37,256.3,3.9016]
[1732232032554,3.9006,256.37,256.3,7.58495502]
[1732232034682,3.9006,256.37,256.3,11.48655502]
[1732232035658,3.9006,256.37,256.3,7.58495502]
[1732232036768,3.9006,256.37,256.3,11.48655502]
[1732232039462,3.9006,256.37,256.21,43.292084]
[1732232039463,3.9006,256.37,256.22,53.1744]
[1732232039659,3.9006,256.37,256.27,7.58495502]
[1732232039660,7.58495502,256.36,256.27,7.58495502]
[1732232041285,7.58495502,256.34,256.25,7.58495502]
[1732232042879,7.58495502,256.34,256.26,13.6579]
[1732232043388,21.9812,256.39,256.27,7.58495502]
[1732232043572,3.9004,256.38,256.31,7.58495502]
[1732232043759,3.9004,256.38,256.31,6.60926912]
[1732232044569,3.9004,256.38,256.31,10.51066912]
[1732232044982,3.9004,256.38,256.31,3.9014]
[1732232046375,11.48535502,256.38,256.31,3.9014]
[1732232046879,7.58495502,256.36,256.29,13.6559]
[1732232047282,7.58495502,256.36,256.29,9.7542]
[1732232049085,11.48575502,256.36,256.29,9.7542]
[1732232050185,11.48575502,256.36,256.29,13.656]
[1732232051480,3.9004,256.38,256.29,13.656]
[1732232051690,11.48535502,256.38,256.29,13.656]
[1732232053872,3.9004,256.38,256.3,7.58495502]
[1732232054879,3.9004,256.38,256.31,3.9015]
[1732232055968,3.9004,256.38,256.3,9.754]
[1732232057680,3.9004,256.38,256.3,17.33895502]
[1732232057868,3.9004,256.38,256.3,7.58495502]
[1732232058982,3.9004,256.38,256.31,3.9015]
[1732232061488,7.58495502,256.37,256.28,7.58495502]
[1732232061676,3.9004,256.38,256.29,20.0]
[1732232061880,7.58495502,256.37,256.29,20.0]
[1732232062775,7.58495502,256.37,256.3,3.9016]
[1732232063291,3.9004,256.38,256.3,3.9016]
[1732232063292,3.9004,256.38,256.3,11.48655502]
[1732232063675,7.58495502,256.37,256.3,3.9016]
[1732232064690,11.48565502,256.37,256.3,3.9016]
[1732232065287,11.48565502,256.37,256.28,13.6564]
[1732232065474,7.58495502,256.35,256.28,13.6564]
[1732232066486,7.58495502,256.31,256.21,25.73397721]
[1732232066676,7.58495502,256.31,256.21,13.6606]
[1732232066870,7.58495502,256.29,256.21,13.6606]
[1732232067287,7.58495502,256.29,256.21,21.24555502]
[1732232067798,7.58495502,256.29,256.21,9.7576]
[1732232068002,7.58495502,256.29,256.21,17.34255502]
[1732232068980,7.58495502,256.29,256.21,21.24555502]
[1732232072479,23.06085502,256.25,256.15,7.58495502]
[1732232072681,23.06085502,256.25,256.17,9.7591]
[1732232073000,7.58495502,256.23,256.17,9.7591]
[1732232073384,15.4759,256.25,256.22,7.58495502]
[1732232073597,15.4759,256.25,256.17,9.7591]
[1732232073896,15.4759,256.25,256.22,7.58495502]
[1732232074488,15.4759,256.25,256.23,3.9027]
[1732232075994,23.06085502,256.32,256.23,3.9027]
[1732232077095,3.9015,256.31,256.23,3.9027]
[1732232079804,11.48645502,256.31,256.23,3.9027]
[1732232084706,3.9015,256.31,256.23,3.9027]
[1732232084887,11.48645502,256.31,256.24,7.58495502]
[1732232087488,11.48645502,256.31,256.24,11.48745502]
[1732232087904,15.4759,256.32,256.26,7.58495502]
[1732232088283,7.58495502,256.37,256.28,7.58495502]
[1732232088485,11.48555502,256.37,256.28,7.58495502]
[1732232089600,11.48555502,256.37,256.28,11.48685502]
[1732232090589,7.58495502,256.35,256.27,3.902]
[1732232091693,3.901,256.34,256.27,3.902]
[1732232092490,3.901,256.34,256.28,7.58495502]
[1732232093187,23.776884,256.37,256.28,7.58495502]
[1732232093388,35.26243902,256.37,256.28,11.48685502]
[1732232093597,7.58495502,256.35,256.26,7.58495502]
[1732232093811,7.58495502,256.33,256.24,7.58495502]
[1732232094892,11.48625502,256.33,256.25,3.9024]
[1732232095308,3.9006,256.37,256.3,7.58495502]
[1732232095713,3.9006,256.37,256.26,20.0]
[1732232096036,3.9006,256.37,256.29,7.58495502]
[1732232096913,7.58495502,256.36,256.28,3.9018]
[1732232097087,3.9006,256.37,256.28,33.6567]
[1732232097285,16.4825,256.38,256.3,7.58495502]
[1732232097708,20.383,256.38,256.3,7.58495502]
[1732232098503,20.383,256.38,256.31,3.9015]
[1732232099117,19.97126381,256.38,256.31,3.9015]
[1732232101014,16.07076381,256.38,256.32,7.58495502]
[1732232102413,19.97116381,256.38,256.31,13.6553]
[1732232102712,16.07076381,256.38,256.32,7.58495502]
[1732232103217,16.07076381,256.38,256.31,13.6553]
[1732232103218,16.07076381,256.38,256.33,3.9012]
[1732232104615,16.07076381,256.38,256.32,11.48625502]
[1732232105516,3.9001,256.41,256.32,21.23965502]
[1732232105698,11.48505502,256.41,256.32,21.23965502]
[1732232106011,7.58495502,256.39,256.32,21.23965502]
[1732232106915,11.48525502,256.39,256.3,3.9015]
[1732232107091,11.48525502,256.39,256.29,7.58495502]
[1732232108118,11.48525502,256.39,256.29,11.48655502]
[1732232111897,7.58495502,256.37,256.29,11.48655502]
[1732232112699,15.0278,256.36,256.29,11.48655502]
[1732232115013,3.9,256.41,256.31,7.58495502]
[1732232115201,3.9,256.41,256.37,7.58495502]
[1732232115401,3.9,256.41,256.36,7.58495502]
[1732232116619,15.0278,256.54,256.41,20.0]
[1732232116846,15.0278,256.54,256.5,7.58495502]
[1732232117602,15.0278,256.54,256.48,7.58495502]
[1732232118014,15.0278,256.54,256.41,20.0]
[1732232118203,15.0278,256.54,256.46,11.48405502]
[1732232118711,21.3162,256.61,256.48,7.58495502]
[1732232118910,15.0278,256.67,256.56,7.58495502]
[1732232119115,22.61275502,256.67,256.57,7.58495502]
[1732232119323,15.0278,256.67,256.57,7.58495502]
[1732232120219,15.0278,256.67,256.57,11.48245502]
[1732232120422,15.0278,256.73,256.57,55.25933902]
[1732232121624,26.50795502,256.73,256.57,55.25933902]
[1732232122522,7.79765572,256.71,256.57,31.48245502]
[1732232122719,11.48075502,256.69,256.57,31.48245502]
[1732232122903,3.8959,256.68,256.57,31.48245502]
[1732232123799,7.58495502,256.69,256.57,31.48245502]
[1732232124005,0.2127007,256.71,256.57,55.25933902]
[1732232127332,0.2127007,256.71,256.57,57.74200288]
[1732232129508,0.2127007,256.71,256.57,61.63500288]
[1732232130525,0.2127007,256.71,256.57,57.74200288]
[1732232131424,11.48055502,256.7,256.57,23.8975]
[1732232131630,7.58495502,256.66,256.57,31.48245502]
[1732232132835,0.2127007,256.71,256.57,31.48245502]
[1732232132836,7.58495502,256.68,256.57,31.48245502]
[1732232133034,0.2127007,256.71,256.57,31.48245502]
[1732232133035,3.8956,256.7,256.57,31.48245502]
[1732232134824,0.2127007,256.71,256.57,55.25933902]
[1732232136326,3.8959,256.68,256.57,3.8975]
[1732232136520,3.8962,256.66,256.57,31.48245502]
[1732232137044,7.58495502,256.67,256.57,23.8975]
[1732232137220,3.8971,256.6,256.5,9.7463]
[1732232137422,3.8971,256.6,256.52,7.58495502]
[1732232137923,23.79555502,256.61,256.54,7.58495502]
[1732232138123,16.2106,256.61,256.54,11.48285502]
[1732232141438,27.69255502,256.61,256.54,3.8979]
[1732232141738,23.79555502,256.61,256.51,23.8983]
[1732232141916,16.2106,256.61,256.51,31.48325502]
[1732232142115,20.1076,256.61,256.54,20.0]
[1732232142412,16.2106,256.61,256.55,7.58495502]
[1732232142732,16.2106,256.61,256.57,7.58495502]
[1732232142941,15.1477,256.69,256.57,27.58495502]
[1732232143322,15.1477,256.69,256.57,20.0]
[1732232143526,15.1477,256.69,256.57,31.48245502]
[1732232145921,15.1477,256.69,256.57,23.8975]
[1732232146123,15.1477,256.69,256.57,31.48245502]
[1732232147038,15.1477,256.69,256.57,55.25933902]
[1732232149632,15.1477,256.69,256.57,59.15233902]
[1732232149941,15.1477,256.77,256.58,46.25954786]
[1732232150138,15.1477,256.77,256.68,7.58495502]
[1732232150439,15.1477,256.77,256.7,7.58495502]
[1732232150622,7.58495502,256.76,256.59,13.6403]
[1732232150824,7.58495502,256.76,256.66,7.58495502]
[1732232151321,22.73265502,256.77,256.68,7.58495502]
[1732232151937,22.73265502,256.77,256.7,7.58495502]
[1732232152147,15.1477,256.77,256.7,7.58495502]
[1732232152827,15.1477,256.77,256.7,11.48045502]
[1732232153023,15.1477,256.77,256.7,31.48045502]
[1732232154219,22.73265502,256.77,256.7,20.0]
[1732232154450,3.895,256.74,256.68,20.0]
[1732232154746,15.1477,256.77,256.68,20.0]
[1732232154948,11.47965502,256.76,256.68,23.8958]
[1732232155136,11.47965502,256.76,256.69,7.58495502]
[1732232155137,3.8947,256.76,256.69,7.58495502]
[1732232155334,19.0422,256.77,256.69,7.58495502]
[1732232156230,15.1477,256.77,256.68,33.6355]
[1732232156553,15.1477,256.77,256.69,7.58495502]
[1732232156940,15.1477,256.77,256.7,3.8955]
[1732232157652,11.47965502,256.76,256.68,33.6355]
[1732232157857,15.1477,256.77,256.69,7.58495502]
[1732232159457,15.1477,256.77,256.7,3.8955]
[1732232159757,7.58495502,256.76,256.7,3.8955]
[1732232160569,19.0423,256.77,256.7,3.8955]
[1732232160732,15.1477,256.77,256.7,11.48045502]
[1732232161156,15.1477,256.77,256.7,31.48045502]
[1732232163365,97.1,257.05,256.7,31.48045502]
[1732232163366,7.58495502,256.82,256.7,31.48045502]
[1732232163751,7.58495502,256.82,256.7,27.58495502]
[1732232164845,15.1477,256.83,256.7,51.36183902]
[1732232165167,15.1477,256.83,256.7,55.25733902]
[1732232166466,15.1477,256.83,256.7,54.86198834]
[1732232166958,22.73265502,256.83,256.7,23.50014932]
[1732232167162,7.58495502,256.77,256.7,23.50014932]
[1732232167550,7.58495502,256.77,256.7,19.60464932]
[1732232167952,3.8944,256.78,256.7,19.60464932]
[1732232169264,7.58495502,256.79,256.7,19.60464932]
[1732232169571,11.47925502,256.79,256.7,19.60464932]
[1732232169972,3.8944,256.78,256.7,19.60464932]
[1732232172168,15.1477,256.83,256.7,19.60464932]
[1732232173070,15.1477,256.83,256.7,27.18960434]
[1732232173760,19.0413,256.83,256.7,27.18960434]
[1732232174675,3.8938,256.82,256.7,27.18960434]
[1732232174969,3.8941,256.8,256.7,27.18960434]
[1732232175866,3.8941,256.8,256.7,19.60464932]
[1732232176049,3.8939,256.82,256.7,27.18960434]
[1732232176244,3.8939,256.81,256.7,27.18960434]
[1732232179349,15.1477,256.83,256.7,27.18960434]
[1732232179683,15.1477,256.83,256.7,50.96648834]
[1732232179851,15.1477,256.83,256.81,7.58495502]
[1732232180049,15.1477,256.83,256.77,7.58495502]
[1732232180966,19.0413,256.83,256.77,7.58495502]
[1732232181878,19.0413,256.83,256.77,11.47945502]
[1732232182175,15.1477,256.83,256.81,7.58495502]
[1732232182353,3.8925,256.9,256.81,0.94474498]
[1732232182551,23.776884,256.9,256.83,8.5297]
[1732232183170,7.58495502,256.91,256.83,8.5297]
[1732232183365,7.58495502,256.91,256.83,7.58495502]
[1732232183579,3.8925,256.9,256.83,8.5297]
[1732232183772,3.8925,256.9,256.83,7.58495502]
[1732232183959,3.8925,256.9,256.83,8.5297]
[1732232184892,3.8925,256.9,256.83,7.58495502]
[1732232185049,3.8925,256.9,256.83,8.5297]
[1732232185571,19.1096,256.89,256.83,8.5297]
[1732232186152,19.1096,256.89,256.83,7.58495502]
[1732232186372,19.1096,256.89,256.83,8.5297]
[1732232188566,15.2168,256.89,256.85,8.5297]
[1732232190073,13.64375502,256.94,256.85,8.5297]
[1732232190379,3.8921,256.93,256.85,8.5297]
[1732232192265,3.8921,256.93,256.85,0.94474498]
[1732232192580,7.58495502,256.91,256.85,0.94474498]
[1732232193785,3.8921,256.93,256.85,0.94474498]
[1732232193959,3.8921,256.93,256.85,8.5297]
[1732232194473,3.8921,256.93,256.85,7.58495502]
[1732232194780,3.8921,256.93,256.85,8.5297]
[1732232195881,3.8921,256.93,256.87,7.58495502]
[1732232196095,3.8921,256.93,256.87,8.5297]
[1732232197274,19.3986,256.95,256.91,7.58495502]
[1732232198063,19.3986,256.95,256.89,7.58495502]
[1732232198879,19.3986,256.95,256.88,7.58495502]
[1732232199094,26.98355502,256.95,256.88,7.58495502]
[1732232199466,26.98355502,256.95,256.87,0.94474498]
[1732232200788,7.58495502,256.93,256.87,0.94474498]
[1732232202993,3.8922,256.92,256.87,0.94474498]
[1732232203878,3.8922,256.92,256.85,0.94474498]
[1732232204090,3.8922,256.92,256.88,0.94474498]
[1732232204489,3.8922,256.92,256.81,9.7348]
[1732232204490,23.776884,256.91,256.85,0.94474498]
[1732232204690,31.36183902,256.91,256.82,0.94474498]
[1732232204885,31.36183902,256.91,256.82,8.5297]
[1732232205686,23.776884,256.91,256.86,8.5297]
[1732232205887,23.776884,256.93,256.86,8.5297]
[1732232206097,27.668984,256.93,256.86,8.5297]
[1732232208500,27.668984,256.93,256.84,8.5297]
[1732232208501,23.776884,256.91,256.84,8.5297]
[1732232208794,7.58495502,256.92,256.87,0.94474498]
[1732232209497,7.58495502,256.92,256.85,0.94474498]
[1732232209799,3.8924,256.91,256.87,0.94474498]
[1732232210790,3.8924,256.91,256.85,0.94474498]
[1732232214377,3.8924,256.91,256.87,0.94474498]
[1732232214781,27.669084,256.93,256.87,0.94474498]
[1732232214999,7.58495502,256.92,256.87,0.94474498]
[1732232215488,7.58495502,256.92,256.85,13.6265]
[1732232215687,3.8922,256.93,256.87,8.5297]
[1732232215979,7.58495502,256.92,256.87,0.94474498]
[1732232216177,23.776884,256.92,256.87,0.94474498]
[1732232216402,31.36183902,256.92,256.87,0.94474498]
[1732232216702,31.36183902,256.92,256.85,10.67804498]
[1732232216887,31.36183902,256.92,256.85,0.94474498]
[1732232217692,27.669284,256.92,256.85,0.94474498]
[1732232217891,11.47695502,256.94,256.87,0.94474498]
[1732232220296,31.36183902,256.94,256.87,0.94474498]
[1732232220607,31.36183902,256.94,256.87,4.83764498]
[1732232221181,16.37,257.01,256.88,20.0]
[1732232221388,16.37,257.01,256.94,0.94474498]
[1732232221389,3.891,257.0,256.94,0.94474498]
[1732232221889,160.6,257.1,256.94,0.94474498]
[1732232221890,2.5,257.09,256.96,8.5297]
[1732232222109,7.58495502,257.04,256.96,8.5297]
[1732232222404,7.58495502,257.06,256.98,0.94474498]
[1732232222588,7.58495502,257.04,256.96,8.5297]
[1732232222784,7.58495502,257.04,256.98,0.94474498]
[1732232223902,11.47545502,257.04,256.98,0.94474498]
[1732232224102,7.58495502,257.02,256.96,0.94474498]
[1732232224301,7.58495502,257.02,256.99,7.0]
[1732232225401,11.47575502,257.02,256.99,7.0]
[1732232225788,23.776884,257.03,256.99,7.0]
[1732232226092,27.667484,257.03,256.99,7.0]
[1732232226991,7.58495502,257.02,256.99,7.0]
[1732232227403,3.8908,257.01,256.99,7.0]
[1732232227908,31.36183902,257.0,256.99,7.0]
[1732232228113,31.36183902,257.0,256.99,6.25854765]
[1732232228715,9.725,257.07,256.99,6.25854765]
[1732232228892,11.47505502,257.06,256.99,6.25854765]
[1732232229310,4.05525502,257.11,256.99,6.25854765]
[1732232229496,7.58495502,257.06,256.99,6.25854765]
[1732232229908,7.58495502,257.08,257.0,7.58495502]
[1732232231303,3.8899,257.07,257.0,7.58495502]
[1732232231497,23.776884,257.06,257.0,7.58495502]
[1732232231694,3.8899,257.07,257.0,7.58495502]
[1732232232822,7.58495502,257.06,257.0,7.58495502]
[1732232233629,23.776884,257.09,257.0,7.58495502]
[1732232233824,7.58495502,257.07,257.0,7.58495502]
[1732232234013,3.8901,257.06,257.0,7.58495502]
[1732232234322,3.8901,257.06,256.99,6.25854765]
[1732232235319,17.92525502,257.12,256.99,6.25854765]
[1732232235320,1.55525502,257.23,257.06,7.51834498]
[1732232235527,17.9739,257.24,257.09,7.58495502]
[1732232235528,3.888,257.2,257.09,7.58495502]
[1732232235700,7.58495502,257.17,257.09,7.58495502]
[1732232236021,3.8886,257.16,257.09,7.58495502]
[1732232236206,3.8886,257.16,257.09,11.47455502]
[1732232236410,11.47335502,257.18,257.09,11.47455502]
[1732232236731,11.47335502,257.18,257.09,3.8896]
[1732232236899,11.47335502,257.18,257.08,0.94474498]
[1732232236900,11.47335502,257.18,257.1,7.58495502]
[1732232237394,7.58495502,257.16,257.08,8.5297]
[1732232237697,7.58495502,257.12,257.06,6.5736]
[1732232237910,23.776884,257.11,257.06,6.5736]
[1732232238110,3.8895,257.1,257.06,6.5736]
[1732232238416,11.47445502,257.1,257.03,7.58495502]
[1732232238613,7.58495502,257.08,257.01,8.5297]
[1732232239001,23.776884,257.07,257.01,7.58495502]
[1732232239320,23.776884,257.07,257.01,0.94474498]
[1732232239521,23.776884,257.07,257.0,14.15855502]
[1732232240131,3.8901,257.06,257.0,14.15855502]
[1732232240720,23.776884,257.05,257.0,6.5736]
[1732232241108,23.776884,257.05,256.99,6.25854765]
[1732232241715,23.776884,257.05,256.99,7.20329263]
[1732232242020,3.8904,257.04,256.99,7.20329263]
[1732232242936,3.8904,257.04,257.0,7.58495502]
[1732232244619,3.8904,257.04,256.99,7.20329263]
[1732232252530,3.8904,257.04,256.99,6.25854765]
[1732232252726,3.8904,257.04,256.99,7.20329263]
[1732232254039,21.40873635,257.05,256.97,8.5297]
[1732232254224,7.58495502,257.06,256.97,7.58495502]
[1732232254417,7.58495502,257.06,256.98,0.94474498]
[1732232254724,7.58495502,257.06,256.97,7.58495502]
[1732232254926,7.58495502,257.06,256.98,0.94474498]
[1732232255848,3.8904,257.04,256.98,0.94474498]
[1732232257130,11.47535502,257.04,256.97,8.5297]
[1732232257446,23.776884,256.96,256.82,0.94474498]
[1732232257649,7.58495502,256.87,256.85,0.94474498]
[1732232258141,4.05525502,257.07,256.89,0.94474498]
[1732232258343,7.58495502,256.91,256.84,0.94474498]
[1732232258652,7.58495502,256.91,256.88,0.94474498]
[1732232259539,7.58495502,256.89,256.81,6.218]
[1732232259742,7.58495502,256.84,256.78,0.94474498]
[1732232259948,7.58495502,256.81,256.78,0.94474498]
[1732232260241,7.58495502,256.85,256.77,0.94474498]
[1732232260642,7.58495502,256.81,256.75,7.16274498]
[1732232260940,7.58495502,256.79,256.75,7.16274498]
[1732232261447,7.58495502,256.81,256.77,0.94474498]
[1732232262529,7.58495502,256.81,256.76,0.94474498]